[Event "3rd Mersin Open 2018"]
[Site "Mersin"]
[Date "2018.09.12"]
[Round "6.9"]
[White "Olcum, Ahmet"]
[Black "Kizilkus, Akin"]
[Result "0-1"]
[ECO "A45"]
[WhiteElo "2302"]
[BlackElo "1980"]
[Annotator "NA"]
[PlyCount "110"]
[EventDate "2018.09.09"]
[EventType "swiss"]
[EventCountry "TUR"]
[SourceTitle "playchess.com"]
[Source "ChessBase"]
[SourceQuality "1"]
[TimeControl "5400+30"]

1. d4 {[%emt 0:01:30]} Nf6 {[%emt 0:00:30]} 2. Bf4 {[%emt 0:00:30]} d6 {[%emt 0:00:00]} 3. Nc3 {[%emt 0:02:30]} Nbd7 {[%emt 0:03:00]} 4. Nf3 {[%emt 0:01:30]} c5 {[%emt 0:00:30]} 5. d5 {[%emt 0:02:30]} g6 {[%emt 0:04:30]} 6. e4 {[%emt 0:00:30]} Bg7 {[%emt 0:00:30]} 7. a4 {[%emt 0:00:30]} O-O {[%emt 0:01:30]} 8. Be2 {[%emt 0:01:30]} a6 {[%emt 0:00:30]} 9. O-O {[%emt 0:01:30]} Rb8 {[%emt 0:09:30]} 10. Re1 {[%emt 0:09:30]} Ne8 {[%emt 0:01:30]} 11. Rb1 {[%emt 0:12:30]} Nc7 {[%emt 0:00:30]} 12. Qd2 {[%emt 0:01:30]} Re8 {[%emt 0:00:30]} 13. b4 {[%emt 0:09:30]} cxb4 {[%emt 0:12:30]} 14. Rxb4 {[%emt 0:01:30]} Nc5 {[%emt 0:00:30]} 15. Bc4 {[%emt 0:02:30]} Bg4 {[%emt 0:02:30]} 16. Nd4 {[%emt 0:02:30]} e5 {[%emt 0:08:30]} 17. dxe6 {[%emt 0:02:30]} N7xe6 {[%emt 0:01:30]} 18. Nxe6 {[%emt 0:05:30]} Bxe6 {[%emt 0:02:30]} 19. Nd5 {[%emt 0:08:30]} Kh8 {[%emt 0:10:30]} 20. Bg5 {[%emt 0:20:33]} f6 {[%emt 0:00:30]} 21. Bh4 {[%emt 0:01:48]} Rc8 {[%emt 0:01:30]} 22. h3 {[%emt 0:02:56]} Bxd5 {[%emt 0:09:30]} 23. Bxd5 {[%emt 0:03:02]} Qd7 {[%emt 0:00:30]} 24. Reb1 {[%emt 0:01:26]} Rc7 {[%emt 0:00:00]} 25. Bg3 {[%emt 0:01:14]} Rd8 {[%emt 0:02:00]} 26. a5 {[%emt 0:01:01]} Qe7 {[%emt 0:01:30]} 27. Rb6 {[%emt 0:01:19]} Rdd7 {[%emt 0:04:30]} 28. Qb4 {[%emt 0:00:23]} Qd8 {[%emt 0:02:30]} 29. Rd1 {[%emt 0:00:26]} Bf8 {[%emt 0:00:34]} 30. Qd4 {[%emt 0:01:26]} Qe7 {[%emt 0:01:04]} 31. f3 {[%emt 0:00:32]} Bg7 {[%emt 0:02:01]} 32. Qb4 {[%emt 0:00:29]} Rd8 {[%emt 0:04:14]} 33. Bf2 {[%emt 0:00:44]} Rdd7 {[%emt 0:02:01]} 34. Rb1 {[%emt 0:00:35]} f5 {[%emt 0:00:27]} 35. exf5 {[%emt 0:00:23]} gxf5 {[%emt 0:01:19]} 36. Re1 {[%emt 0:00:06]} Qf8 {[%emt 0:00:12]} 37. Qf4 {[%emt 0:00:50]} Rc8 {[%emt 0:01:47]} 38. Kh1 {[%emt 0:00:34]} Bc3 {[%emt 0:02:15]} 39. Rbb1 {[%emt 0:00:34]} Qf6 {[%emt 0:01:07]} 40. Bh4 {[%emt 0:00:28]} Qg6 {[%emt 0:00:25]} 41. Re3 {[%emt 0:00:16]} Rg7 {[%emt 0:00:31]} 42. g3 {[%emt 0:00:34]} Bd2 {[%emt 0:00:44]} 43. Rbe1 {[%emt 0:00:06]} Bxe1 {[%emt 0:00:14]} 44. Rxe1 {[%emt 0:00:11]} Re8 {[%emt 0:00:11]} 45. Qd2 {[%emt 0:00:49]} Rxe1+ {[%emt 0:02:03]} 46. Qxe1 {[%emt 0:00:00]} h6 {[%emt 0:00:57]} 47. Qc3 {[%emt 0:01:25]} Kh7 {[%emt 0:00:14]} 48. Qe3 {[%emt 0:00:45]} f4 {[%emt 0:00:26]} 49. Qxf4 {[%emt 0:00:13]} Qxc2 {[%emt 0:00:05]} 50. g4 {[%emt 0:00:29]} Qd1+ {[%emt 0:00:04]} 51. Kg2 {[%emt 0:00:14]} Qxd5 {[%emt 0:00:04]} 52. Bf6 {[%emt 0:00:10]} Rf7 {[%emt 0:00:26]} 53. h4 {[%emt 0:00:33]} Ne6 {[%emt 0:00:22]} 54. Qa4 {[%emt 0:00:18]} Rxf6 {[%emt 0:00:14]} 55. Qd7+ {[%emt 0:00:07]} Ng7 {[%emt 0:00:04]} 0-1

[Event "3rd Mersin Open 2018"]
[Site "Mersin"]
[Date "2018.09.12"]
[Round "6.10"]
[White "Kazimova, Narmin"]
[Black "Gokcek, Kursat Bugra"]
[Result "1/2-1/2"]
[ECO "E63"]
[WhiteElo "2264"]
[BlackElo "2092"]
[Annotator "ChessBase"]
[PlyCount "153"]
[EventDate "2018.09.09"]
[EventType "swiss"]
[EventCountry "TUR"]
[SourceTitle "playchess.com"]
[Source "ChessBase"]
[SourceQuality "1"]
[TimeControl "5400+30"]

1. Nf3 {[%emt 0:00:30]} Nf6 {[%emt 0:00:30]} 2. c4 {[%emt 0:00:30]} g6 {[%emt 0:00:30]} 3. d4 {[%emt 0:00:30]} Bg7 {[%emt 0:00:00]} 4. Nc3 {[%emt 0:00:30]} O-O {[%emt 0:00:00]} 5. g3 {[%emt 0:00:30]} d6 {[%emt 0:00:30]} 6. Bg2 {[%emt 0:00:00]} Nc6 {[%emt 0:01:30]} 7. O-O {[%emt 0:00:00]} a6 {[%emt 0:00:30]} 8. e4 {[%emt 0:02:30]} e5 {[%emt 0:02:30]} 9. d5 {[%emt 0:08:30]} Ne7 {[%emt 0:05:30]} 10. Ne1 {[%emt 0:06:30]} Nd7 {[%emt 0:01:30]} 11. Nd3 {[%emt 0:00:30]} b6 {[%emt 0:00:30]} 12. Be3 {[%emt 0:00:30]} f5 {[%emt 0:04:30]} 13. f3 {[%emt 0:00:30]} h6 {[%emt 0:01:30]} 14. b4 {[%emt 0:00:30]} f4 {[%emt 0:07:30]} 15. Bf2 {[%emt 0:00:30]} g5 {[%emt 0:00:30]} 16. c5 {[%emt 0:04:30]} Nf6 {[%emt 0:05:30]} 17. Rc1 {[%emt 0:05:30]} Bd7 {[%emt 0:03:30]} 18. Qb3 {[%emt 0:03:30]} Ng6 {[%emt 0:09:30]} 19. cxd6 {[%emt 0:02:30]} cxd6 {[%emt 0:00:30]} 20. b5 {[%emt 0:02:30]} a5 {[%emt 0:02:30]} 21. Nb2 {[%emt 0:02:30]} Ne7 {[%emt 0:02:30]} 22. Nca4 {[%emt 0:04:30]} Rb8 {[%emt 0:01:30]} 23. Rc2 {[%emt 0:06:30]} Ne8 {[%emt 0:05:30]} 24. Rfc1 {[%emt 0:01:30]} Rf7 {[%emt 0:05:30]} 25. Qd3 {[%emt 0:02:30]} h5 {[%emt 0:04:30]} 26. gxf4 {[%emt 0:01:30]} Rxf4 {[%emt 0:02:30]} 27. Be3 {[%emt 0:02:30]} Ng6 {[%emt 0:00:00]} 28. Bxf4 {[%emt 0:03:30]} exf4 {[%emt 0:00:00]} 29. Nc3 {[%emt 0:03:30]} Ne5 {[%emt 0:02:30]} 30. Qf1 {[%emt 0:04:30]} Qf6 {[%emt 0:02:30]} 31. Nc4 {[%emt 0:00:30]} Nxc4 {[%emt 0:04:30]} 32. Qxc4 {[%emt 0:01:30]} Qd4+ {[%emt 0:00:30]} 33. Qxd4 {[%emt 0:00:00]} Bxd4+ {[%emt 0:00:00]} 34. Kh1 {[%emt 0:00:00]} Be3 {[%emt 0:00:00]} 35. Re1 {[%emt 0:01:30]} Rc8 {[%emt 0:01:30]} 36. Ree2 {[%emt 0:00:30]} Bd4 {[%emt 0:03:30]} 37. Nd1 {[%emt 0:06:30]} Rxc2 {[%emt 0:03:00]} 38. Rxc2 {[%emt 0:00:30]} Bxb5 {[%emt 0:00:00]} 39. Nb2 {[%emt 0:02:30]} Nf6 {[%emt 0:10:30]} 40. Nc4 {[%emt 0:01:30]} Bxc4 {[%emt 0:00:55]} 41. Rxc4 {[%emt 0:00:30]} Bc5 {[%emt 0:00:00]} 42. Rc2 {[%emt 0:02:11]} Nd7 {[%emt 0:02:50]} 43. Bf1 {[%emt 0:01:20]} Kg7 {[%emt 0:00:56]} 44. Kg2 {[%emt 0:09:14]} Ne5 {[%emt 0:02:02]} 45. h3 {[%emt 0:01:15]} Kg6 {[%emt 0:01:52]} 46. Be2 {[%emt 0:00:17]} Kf6 {[%emt 0:00:35]} 47. Rc3 {[%emt 0:01:24]} Nf7 {[%emt 0:02:12]} 48. Bb5 {[%emt 0:00:49]} Ke7 {[%emt 0:01:40]} 49. Kf1 {[%emt 0:01:18]} Ne5 {[%emt 0:00:31]} 50. Ke2 {[%emt 0:00:55]} Kf7 {[%emt 0:01:10]} 51. Kd1 {[%emt 0:00:27]} g4 {[%emt 0:00:25]} 52. hxg4 {[%emt 0:00:58]} hxg4 {[%emt 0:00:10]} 53. fxg4 {[%emt 0:00:37]} f3 {[%emt 0:00:34]} 54. Ba6 {[%emt 0:04:11]} Kf6 {[%emt 0:00:37]} 55. Kc2 {[%emt 0:02:19]} Kg5 {[%emt 0:00:17]} 56. Kb3 {[%emt 0:00:11]} Kxg4 {[%emt 0:00:49]} 57. Ka4 {[%emt 0:00:55]} Kf4 {[%emt 0:00:13]} 58. Kb5 {[%emt 0:00:36]} Kxe4 {[%emt 0:00:37]} 59. Rc1 {[%emt 0:00:30]} Kxd5 {[%emt 0:00:55]} 60. Bb7+ {[%emt 0:00:24]} Kd4 {[%emt 0:00:11]} 61. a4 {[%emt 0:00:33]} Ke3 {[%emt 0:00:31]} 62. Rc3+ {[%emt 0:00:24]} Ke2 {[%emt 0:00:32]} 63. Rc2+ {[%emt 0:00:26]} Kd3 {[%emt 0:00:30]} 64. Rc1 {[%emt 0:00:34]} Kd2 {[%emt 0:00:29]} 65. Rb1 {[%emt 0:00:28]} Ke3 {[%emt 0:00:40]} 66. Rb3+ {[%emt 0:00:25]} Kf4 {[%emt 0:00:32]} 67. Ka6 {[%emt 0:00:18]} Kg3 {[%emt 0:00:35]} 68. Bd5 {[%emt 0:00:55]} Kf2 {[%emt 0:00:35]} 69. Rxb6 {[%emt 0:00:30]} Bxb6 {[%emt 0:00:13]} 70. Kxb6 {[%emt 0:00:04]} Ke3 {[%emt 0:00:49]} 71. Kxa5 {[%emt 0:00:12]} Kd4 {[%emt 0:00:09]} 72. Bxf3 {[%emt 0:00:44]} Nxf3 {[%emt 0:00:05]} 73. Kb5 {[%emt 0:00:54]} Ng5 {[%emt 0:01:11]} 74. a5 {[%emt 0:00:34]} Ne6 {[%emt 0:00:11]} 75. a6 {[%emt 0:00:28]} Nc7+ {[%emt 0:00:10]} 76. Kc6 {[%emt 0:00:03]} Nxa6 {[%emt 0:00:04]} 77. Kxd6 {[%emt 0:00:04]} 1/2-1/2

[Event "3rd Mersin Open 2018"]
[Site "Mersin"]
[Date "2018.09.12"]
[Round "6.11"]
[White "Hatirli, Ugur Can"]
[Black "Ozcan, Berk"]
[Result "1/2-1/2"]
[ECO "E67"]
[WhiteElo "1608"]
[BlackElo "1617"]
[Annotator "NA"]
[PlyCount "40"]
[EventDate "2018.09.09"]
[EventType "swiss"]
[EventCountry "TUR"]
[SourceTitle "playchess.com"]
[Source "ChessBase"]
[SourceQuality "1"]
[TimeControl "5400+30"]

1. d4 {[%emt 0:00:30]} Nf6 {[%emt 0:02:30]} 2. Nf3 {[%emt 0:00:00]} g6 {[%emt 0:00:30]} 3. g3 {[%emt 0:00:00]} Bg7 {[%emt 0:02:30]} 4. Bg2 {[%emt 0:00:30]} O-O {[%emt 0:00:30]} 5. O-O {[%emt 0:00:00]} d6 {[%emt 0:01:30]} 6. c4 {[%emt 0:01:00]} Nbd7 {[%emt 0:01:30]} 7. Nc3 {[%emt 0:00:30]} e5 {[%emt 0:00:30]} 8. dxe5 {[%emt 0:00:30]} dxe5 {[%emt 0:00:00]} 9. Bg5 {[%emt 0:00:00]} c6 {[%emt 0:00:00]} 10. Qd6 {[%emt 0:04:00]} h6 {[%emt 0:04:30]} 11. Bxf6 {[%emt 0:00:30]} Qxf6 {[%emt 0:00:30]} 12. Rad1 {[%emt 0:10:30]} Qxd6 {[%emt 0:11:30]} 13. Rxd6 {[%emt 0:00:30]} Re8 {[%emt 0:01:30]} 14. e4 {[%emt 0:02:30]} Nf8 {[%emt 0:03:30]} 15. Rfd1 {[%emt 0:05:30]} Bg4 {[%emt 0:00:30]} 16. h3 {[%emt 0:00:30]} Bxf3 {[%emt 0:00:30]} 17. Bxf3 {[%emt 0:00:30]} Ne6 {[%emt 0:00:30]} 18. Ne2 {[%emt 0:03:30]} Rad8 {[%emt 0:13:30]} 19. Rxd8 {[%emt 0:00:30]} Rxd8 {[%emt 0:00:30]} 20. Rxd8+ {[%emt 0:00:30]} Nxd8 {[%emt 0:00:00]} 1/2-1/2

[Event "3rd Mersin Open 2018"]
[Site "Mersin"]
[Date "2018.09.12"]
[Round "6.12"]
[White "Kizilkus, Tanju"]
[Black "Altug, Sertac"]
[Result "0-1"]
[ECO "D35"]
[WhiteElo "1594"]
[BlackElo "1633"]
[Annotator "NA"]
[PlyCount "58"]
[EventDate "2018.09.09"]
[EventType "swiss"]
[EventCountry "TUR"]
[SourceTitle "playchess.com"]
[Source "ChessBase"]
[SourceQuality "1"]
[TimeControl "5400+30"]

1. c4 {[%emt 0:00:30]} e6 {[%emt 0:01:30]} 2. g3 {[%emt 0:00:30]} d5 {[%emt 0:01:30]} 3. cxd5 {[%emt 0:00:30]} exd5 {[%emt 0:00:30]} 4. d4 {[%emt 0:00:00]} Bd6 {[%emt 0:01:30]} 5. Bg2 {[%emt 0:00:00]} Nf6 {[%emt 0:00:30]} 6. Nf3 {[%emt 0:01:30]} O-O {[%emt 0:01:30]} 7. Bg5 {[%emt 0:01:30]} h6 {[%emt 0:02:30]} 8. Bxf6 {[%emt 0:00:30]} Qxf6 {[%emt 0:00:30]} 9. Nc3 {[%emt 0:00:00]} c6 {[%emt 0:01:30]} 10. O-O {[%emt 0:00:00]} Re8 {[%emt 0:03:30]} 11. Re1 {[%emt 0:01:30]} Bf5 {[%emt 0:01:30]} 12. Qb3 {[%emt 0:01:30]} Na6 {[%emt 0:04:30]} 13. a3 {[%emt 0:05:30]} Re7 {[%emt 0:02:30]} 14. Nh4 {[%emt 0:12:30]} Bh7 {[%emt 0:05:30]} 15. e4 {[%emt 0:01:30]} Qxd4 {[%emt 0:03:30]} 16. Red1 {[%emt 0:02:30]} Nc5 {[%emt 0:03:30]} 17. Qa2 {[%emt 0:18:30]} Nd3 {[%emt 0:03:30]} 18. Rxd3 {[%emt 0:04:30]} Qxd3 {[%emt 0:01:30]} 19. Rd1 {[%emt 0:00:30]} Qc2 {[%emt 0:00:30]} 20. exd5 {[%emt 0:00:00]} Bc5 {[%emt 0:01:30]} 21. dxc6 {[%emt 0:02:00]} bxc6 {[%emt 0:02:30]} 22. Bxc6 {[%emt 0:00:30]} Qxf2+ {[%emt 0:01:30]} 23. Kh1 {[%emt 0:00:00]} Re1+ {[%emt 0:01:30]} 24. Rxe1 {[%emt 0:00:00]} Qxe1+ {[%emt 0:00:30]} 25. Kg2 {[%emt 0:00:30]} Qf2+ {[%emt 0:00:00]} 26. Kh3 {[%emt 0:00:00]} Qf1+ {[%emt 0:01:00]} 27. Bg2 {[%emt 0:00:00]} Bf5+ {[%emt 0:00:30]} 28. g4 {[%emt 0:02:30]} Qd3+ {[%emt 0:01:30]} 29. Nf3 {[%emt 0:00:30]} h5 {[%emt 0:01:30]} 0-1

[Event "3rd Mersin Open 2018"]
[Site "Mersin"]
[Date "2018.09.12"]
[Round "6.13"]
[White "Arslan, Muhammed Emin"]
[Black "Polat, Ahmet Eren"]
[Result "1/2-1/2"]
[ECO "A26"]
[WhiteElo "1530"]
[BlackElo "1669"]
[Annotator "NA"]
[PlyCount "43"]
[EventDate "2018.09.09"]
[EventType "swiss"]
[EventCountry "TUR"]
[SourceTitle "playchess.com"]
[Source "ChessBase"]
[SourceQuality "1"]
[TimeControl "5400+30"]

1. c4 {[%emt 0:00:30]} d6 {[%emt 0:00:30]} 2. Nc3 {[%emt 0:00:00]} e5 {[%emt 0:00:00]} 3. g3 {[%emt 0:00:00]} Nc6 {[%emt 0:00:00]} 4. Bg2 {[%emt 0:00:00]} g6 {[%emt 0:00:30]} 5. e4 {[%emt 0:00:00]} Bg7 {[%emt 0:00:00]} 6. Nge2 {[%emt 0:00:30]} Be6 {[%emt 0:00:00]} 7. d3 {[%emt 0:00:00]} Qd7 {[%emt 0:00:30]} 8. Nd5 {[%emt 0:00:00]} Nd8 {[%emt 0:00:30]} 9. O-O {[%emt 0:03:30]} c6 {[%emt 0:00:30]} 10. Ne3 {[%emt 0:00:30]} Ne7 {[%emt 0:01:30]} 11. Rb1 {[%emt 0:00:30]} O-O {[%emt 0:00:30]} 12. Bd2 {[%emt 0:01:30]} f5 {[%emt 0:09:30]} 13. f4 {[%emt 0:03:30]} Nf7 {[%emt 0:11:30]} 14. Qc2 {[%emt 0:06:30]} Rfd8 {[%emt 0:07:30]} 15. Rbd1 {[%emt 0:03:30]} Rac8 {[%emt 0:13:30]} 16. fxe5 {[%emt 0:10:30]} dxe5 {[%emt 0:07:30]} 17. Bc1 {[%emt 0:03:30]} fxe4 {[%emt 0:01:30]} 18. dxe4 {[%emt 0:00:30]} Qc7 {[%emt 0:00:30]} 19. b3 {[%emt 0:01:30]} Rxd1 {[%emt 0:01:30]} 20. Rxd1 {[%emt 0:00:30]} Rd8 {[%emt 0:00:30]} 21. Rxd8+ {[%emt 0:03:30]} Qxd8 {[%emt 0:00:30]} 22. Nd1 {[%emt 0:00:30]} 1/2-1/2

[Event "3rd Mersin Open 2018"]
[Site "Mersin"]
[Date "2018.09.12"]
[Round "6.14"]
[White "Subasi, Fidel"]
[Black "Zuberoglu, Ibrahim Berk"]
[Result "0-1"]
[ECO "A80"]
[WhiteElo "1659"]
[BlackElo "1633"]
[Annotator "NA"]
[PlyCount "78"]
[EventDate "2018.09.09"]
[EventType "swiss"]
[EventCountry "TUR"]
[SourceTitle "playchess.com"]
[Source "ChessBase"]
[SourceQuality "1"]
[TimeControl "5400+30"]

1. d4 {[%emt 0:00:30]} f5 {[%emt 0:00:30]} 2. Bg5 {[%emt 0:00:00]} g6 {[%emt 0:00:00]} 3. Nd2 {[%emt 0:02:00]} Bg7 {[%emt 0:03:00]} 4. e4 {[%emt 0:02:30]} d5 {[%emt 0:14:30]} 5. e5 {[%emt 0:04:30]} c5 {[%emt 0:00:30]} 6. f4 {[%emt 0:04:30]} Qb6 {[%emt 0:08:30]} 7. dxc5 {[%emt 0:25:30]} Qxb2 {[%emt 0:01:30]} 8. Ngf3 {[%emt 0:01:30]} Qc3 {[%emt 0:09:30]} 9. Bb5+ {[%emt 0:07:30]} Nc6 {[%emt 0:01:30]} 10. Bxc6+ {[%emt 0:03:30]} bxc6 {[%emt 0:00:30]} 11. O-O {[%emt 0:00:00]} Qxc5+ {[%emt 0:04:30]} 12. Kh1 {[%emt 0:00:00]} Nh6 {[%emt 0:00:30]} 13. Nb3 {[%emt 0:03:30]} Qb6 {[%emt 0:02:30]} 14. h3 {[%emt 0:00:30]} Nf7 {[%emt 0:03:30]} 15. Bh4 {[%emt 0:00:30]} h6 {[%emt 0:01:30]} 16. Bf2 {[%emt 0:03:30]} Qc7 {[%emt 0:02:30]} 17. Nfd4 {[%emt 0:03:30]} O-O {[%emt 0:09:30]} 18. Nc5 {[%emt 0:02:30]} Nd8 {[%emt 0:01:30]} 19. Rb1 {[%emt 0:05:30]} Qa5 {[%emt 0:03:30]} 20. Nxc6 {[%emt 0:03:30]} Qc7 {[%emt 0:04:30]} 21. Nxe7+ {[%emt 0:04:30]} Qxe7 {[%emt 0:01:30]} 22. Qxd5+ {[%emt 0:00:30]} Ne6 {[%emt 0:00:30]} 23. Qxa8 {[%emt 0:01:30]} Nxc5 {[%emt 0:05:30]} 24. Qd5+ {[%emt 0:01:22]} Ne6 {[%emt 0:00:30]} 25. Be1 {[%emt 0:04:32]} Rd8 {[%emt 0:01:45]} 26. Qc4 {[%emt 0:00:53]} Kh7 {[%emt 0:02:03]} 27. Bb4 {[%emt 0:00:26]} Qh4 {[%emt 0:03:09]} 28. Ba5 {[%emt 0:00:53]} Re8 {[%emt 0:02:44]} 29. Rb8 {[%emt 0:04:04]} Ng5 {[%emt 0:09:56]} 30. Be1 {[%emt 0:05:02]} Qh5 {[%emt 0:00:01]} 31. fxg5 {[%emt 0:03:24]} Be6 {[%emt 0:00:02]} 32. Qc7 {[%emt 0:01:44]} Bd5 {[%emt 0:01:06]} 33. Kg1 {[%emt 0:00:19]} Qe2 {[%emt 0:00:54]} 34. Rf2 {[%emt 0:02:06]} Qxe1+ {[%emt 0:00:05]} 35. Rf1 {[%emt 0:00:02]} Qe3+ {[%emt 0:01:43]} 36. Rf2 {[%emt 0:00:29]} Qe1+ {[%emt 0:00:01]} 37. Rf1 {[%emt 0:00:04]} Qg3 {[%emt 0:00:01]} 38. Rf2 {[%emt 0:00:15]} Rxe5 {[%emt 0:00:13]} 39. Qd8 {[%emt 0:01:18]} Re1+ {[%emt 0:00:29]} 0-1

[Event "3rd Mersin Open 2018"]
[Site "Mersin"]
[Date "2018.09.15"]
[Round "8.6"]
[White "Bacak, Muhammed Kaan"]
[Black "Dogan, Nazmi Can"]
[Result "1-0"]
[ECO "A11"]
[WhiteElo "2126"]
[BlackElo "2275"]
[Annotator "NA"]
[PlyCount "89"]
[EventDate "2018.09.09"]
[EventType "swiss"]
[EventCountry "TUR"]
[SourceTitle "playchess.com"]
[Source "ChessBase"]
[SourceQuality "1"]
[TimeControl "5400+30"]

{[%evp 8,89,14,8,25,14,2,0,32767,32767,32767,23,23,10,26,-35,-3,-3,16,24,26,0,21,12,34,31,50,54,47,0,21,9,2,32767,32767,32767,32767,32767,55,37,35,19,64,58,68,68,61,48,54,46,49,40,47,48,43,34,61,62,70,58,49,45,45,45,51,20,173,34,35,0,137,150,222,131,301,315,602,620,687,791,1521,3098,1706,29975]} 1. Nf3 {[%emt 0:00:30]} d5 {[%emt 0:00:30]} 2. g3 {[%emt 0:00:00]} c6 {[%emt 0:00:30]} 3. Bg2 {[%emt 0:00:00]} Bg4 {[%emt 0:00:30]} 4. c4 {[%emt 0:00:30]} e6 {[%emt 0:04:30]} 5. O-O {[%emt 0:02:30]} Nd7 {[%emt 0:02:30]} 6. d3 {[%emt 0:00:30] LiveBook: 164 Games} Ngf6 {[%emt 0:03:30]} 7. Nc3 {[%emt 0:03:30]} Bxf3 {[%emt 0:03:30] A11: English Opening: 1...c6} (7... Be7 8. Be3 O-O 9. Qb3 Bxf3 10. Bxf3 Ne5 11. Qxb7 Nxf3+ 12. exf3 d4 13. Bxd4 Qxd4 14. Qxe7 Qxd3 15. Qc5 Qxf3 {0-1 (63) Pantsulaia,L (2605)-Sevian,S (2614) chess.com INT 2018}) 8. exf3 {[%emt 0:00:30]} Be7 {[%emt 0:04:30]} 9. a3 $146 {[%emt 0:06:30]} ({Predecessor:} 9. f4 dxc4 10. dxc4 O-O 11. Qc2 Qc7 12. b3 {½-½ (12) Simic,D (2306)-Mijailovic,Z (2409) Banja Vrujci 2017}) 9... a5 {[%emt 0:06:30]} 10. Rb1 {[%emt 0:04:30]} O-O {[%emt 0:07:30]} 11. b4 {[%emt 0:01:30]} axb4 {[%emt 0:00:30]} 12. axb4 {[%emt 0:01:30]} Qc7 {[%emt 0:06:30]} 13. Qb3 {[%emt 0:03:30]} Rfd8 {[%emt 0:08:30]} 14. Re1 {[%emt 0:15:30]} Bf8 {[%emt 0:01:30]} 15. Bf4 {[%emt 0:01:30]} Bd6 {[%emt 0:00:30]} 16. Be3 {[%emt 0:00:30]} h6 {[%emt 0:10:30]} 17. Rec1 {[%emt 0:11:30]} Qb8 {[%emt 0:04:30]} 18. Na4 {[%emt 0:03:30]} (18. f4 $14) 18... e5 {[%emt 0:07:30]} 19. Nb6 {[%emt 0:11:30]} Nxb6 {[%emt 0:02:30]} 20. Bxb6 {[%emt 0:00:30]} dxc4 {[%emt 0:00:30]} 21. dxc4 {[%emt 0:00:30]} Bc7 {[%emt 0:00:30]} 22. Be3 {[%emt 0:00:30]} Qc8 {[%emt 0:02:30]} 23. Bf1 {[%emt 0:06:30]} Qf5 {[%emt 0:03:05]} 24. Be2 {[%emt 0:00:30]} Rd7 {[%emt 0:05:42]} 25. Rd1 {[%emt 0:01:30]} Rad8 {[%emt 0:00:50]} 26. Rxd7 {[%emt 0:01:30]} Qxd7 {[%emt 0:01:51]} 27. Rd1 {[%emt 0:00:30]} Qe8 {[%emt 0:00:42]} 28. Rxd8 {[%emt 0:00:30]} Qxd8 {[%emt 0:00:40]} 29. b5 {[%emt 0:00:30]} Qd7 {[%emt 0:01:32]} 30. bxc6 {[%emt 0:08:53]} bxc6 {[%emt 0:01:47]} 31. Kg2 {[%emt 0:00:46]} g5 {[%emt 0:03:27]} 32. Qc2 {[%emt 0:01:07]} Kg7 {[%emt 0:00:40]} 33. h3 {[%emt 0:00:30]} Qe6 {[%emt 0:02:00]} 34. Bd3 {[%emt 0:00:18]} Bd6 {[%emt 0:00:45]} 35. Bf5 {[%emt 0:02:59]} Qe7 {[%emt 0:00:41]} 36. Qa4 {[%emt 0:01:17]} Qb7 $11 {[%emt 0:01:22] [#]} 37. Qd1 {[%emt 0:01:02]} ({White should try} 37. h4 $1 $18) 37... Qe7 $1 {[%emt 0:00:12]} 38. Qa4 {[%emt 0:01:48]} Qe8 {[%emt 0:01:21] [#]} 39. h4 $1 {[%emt 0:00:43]} e4 {[%emt 0:02:13]} (39... gxh4 $16 {was called for.} 40. c5 (40. gxh4 h5 $16) 40... h3+ 41. Kxh3 Be7) 40. hxg5 {[%emt 0:01:15]} ({White should play} 40. fxe4 $18 gxh4 41. gxh4) 40... hxg5 $2 {[%emt 0:00:24]} (40... exf3+ $16 41. Kxf3 hxg5) 41. fxe4 {[%emt 0:00:59]} ({Schwächer ist} 41. Bxg5 exf3+ 42. Kxf3 Qe1 $16) 41... Qe5 $2 {[%emt 0:00:45]} (41... Be5 42. Bxg5 Bd4) 42. Qxc6 {[%emt 0:00:15]} Nh7 {[%emt 0:00:29]} 43. c5 {[%emt 0:00:20]} Be7 {[%emt 0:00:09]} 44. Qd5 {[%emt 0:00:22]} Qc7 $18 {[%emt 0:00:06]} 45. Bxh7 {[%emt 0:00:08]} 1-0

[Event "3rd Mersin Open 2018"]
[Site "Mersin"]
[Date "2018.09.15"]
[Round "8.7"]
[White "Kazimova, Narmin"]
[Black "Ersahin, Bulent"]
[Result "1/2-1/2"]
[ECO "B38"]
[WhiteElo "2264"]
[BlackElo "2191"]
[Annotator "NA"]
[PlyCount "71"]
[EventDate "2018.09.09"]
[EventType "swiss"]
[EventCountry "TUR"]
[SourceTitle "playchess.com"]
[Source "ChessBase"]
[SourceQuality "1"]
[TimeControl "5400+30"]

{[%evp 17,71,42,48,41,32767,32767,32767,32767,51,41,57,27,68,50,75,82,87,0,0,-26,-19,-14,-7,32767,32767,32767,32767,32767,32767,-34,-36,-35,-35,-34,-36,-37,-35,-26,-26,-17,-26,-6,32767,32767,32767,32767,38,32767,32767,32767,32767,32767,32767,32767,32767,0]} 1. Nf3 {[%emt 0:00:30]} Nf6 {[%emt 0:00:30]} 2. c4 {[%emt 0:00:30]} g6 {[%emt 0:00:30]} 3. d4 {[%emt 0:01:30]} c5 {[%emt 0:00:00]} 4. Nc3 {[%emt 0:00:30]} cxd4 {[%emt 0:00:00]} 5. Nxd4 {[%emt 0:00:30]} Bg7 {[%emt 0:00:30]} 6. e4 {[%emt 0:00:30]} O-O {[%emt 0:00:00]} 7. Be2 {[%emt 0:00:00]} Nc6 {[%emt 0:00:00]} 8. Be3 {[%emt 0:00:00]} d6 {[%emt 0:00:30]} 9. O-O {[%emt 0:00:30]} Bd7 {[%emt 0:00:30]} 10. Qd2 {[%emt 0:09:30] LiveBook: 1800 Partien} Nxd4 {[%emt 0:03:30]} 11. Bxd4 {[%emt 0:00:30]} Bc6 {[%emt 0:00:00]} 12. Bd3 {[%emt 0:00:30]} Qa5 {[%emt 0:10:00] B38: Sicilian: Maroczy Bind with 5...Bg7 and 7...0-0} (12... a5 13. Rae1 a4 14. Nd5 e6 15. Nb4 Bd7 16. Rd1 Qe7 17. Rfe1 Rfc8 18. Bf1 e5 19. Bb6 Be6 20. b3 axb3 21. axb3 {½-½ (36) Wojtaszek,R (2727)-Mamedov,R (2650) Huaian 2016}) 13. a3 {[%emt 0:08:30] [#]} Qh5 $146 {[%emt 0:07:30]} ({Predecessor:} 13... Ng4 14. Bxg7 Kxg7 15. h3 Nf6 16. Rfe1 e5 17. Bf1 Rfd8 18. b4 Qb6 19. Rad1 Nh5 20. b5 {1-0 (43) Kolev,A (2568)-Komljenovic,D (2505) Dos Hermanas 2002}) 14. h3 {[%emt 0:13:30]} a5 {[%emt 0:02:30]} 15. b4 {[%emt 0:06:30]} Qh4 {[%emt 0:08:30]} 16. b5 {[%emt 0:09:30]} Bd7 {[%emt 0:06:30]} 17. Be3 {[%emt 0:02:30]} (17. Rac1 $16) 17... Bxh3 $1 {[%emt 0:17:30]} 18. Bg5 {[%emt 0:12:30]} Qg4 {[%emt 0:15:30]} 19. f3 {[%emt 0:00:30]} Qg3 {[%emt 0:00:00]} 20. Bf4 {[%emt 0:01:30]} Qxg2+ {[%emt 0:00:00]} 21. Qxg2 {[%emt 0:00:00]} Bxg2 {[%emt 0:00:30]} 22. Kxg2 {[%emt 0:00:00]} Nh5 {[%emt 0:00:00]} 23. Ne2 {[%emt 0:03:30]} ({Wrong is} 23. Bd2 $2 Bxc3 24. Bxc3 Nf4+ 25. Kg3 Nxd3 $19) 23... Bxa1 {[%emt 0:01:00]} 24. Rxa1 {[%emt 0:00:00]} Nxf4+ {[%emt 0:01:30]} 25. Nxf4 {[%emt 0:00:00]} e6 {[%emt 0:00:30]} 26. Rd1 {[%emt 0:08:30]} Rfd8 {[%emt 0:00:30]} 27. Ne2 {[%emt 0:01:30]} Rac8 {[%emt 0:01:30]} 28. Nc3 {[%emt 0:02:40]} Rc5 {[%emt 0:02:30]} 29. Be2 {[%emt 0:03:08]} Kf8 {[%emt 0:06:47]} 30. Na4 {[%emt 0:00:29]} Rg5+ {[%emt 0:00:44]} 31. Kf2 {[%emt 0:00:19]} Rh5 {[%emt 0:01:31]} 32. Kg3 {[%emt 0:07:12]} (32. c5 $5) 32... Rg5+ {[%emt 0:01:14]} 33. Kf2 {[%emt 0:00:23]} Rh5 {[%emt 0:00:20]} 34. Kg3 {[%emt 0:04:42]} Rg5+ {[%emt 0:00:33]} 35. Kf2 {[%emt 0:00:44]} Rh5 {[%emt 0:00:10]} 36. Kg3 $11 {[%emt 0:01:25]} 1/2-1/2